Cogmind - Beta 16.1 @@@ ROGUE MODE // 2026.04.25 @ 20:00:11 Player: kareds Result: Destroyed by S-10 Pest with Light Assault Rifle Performance ------------- Evolutions (0) 0 Regions Visited (1) 200 Robots Destroyed (11) 55 Value Destroyed (223) 223 Prototype IDs (0) 0 Alien Tech Used (0) 0 Bonus (0) 0 TOTAL SCORE: 478 Bonus ------- None Cogmind --------- Core Integrity 0/250 Matter 293/300 Energy 100/100 System Corruption 0% Temperature Cool (0) Movement Core (50) Location -10/Materials Parts ------- > --- POWER (1) -------- (None) > --- PROPULSION (2) --- (None) > --- UTILITY (2) ------ (None) > --- WEAPON (2) ------- (None) > --- INVENTORY (5) ---- High-capacity Matter Pod (191) Weight Redist. System Targeting Computer Mining Laser Peak State ------------ > --- POWER ------------ Ion Engine > --- PROPULSION ------- Light Treads Light Treads > --- UTILITY ---------- Small Storage Unit Seismic Detector > --- WEAPON ----------- Medium Laser Assault Rifle > --- INVENTORY -------- Mining Laser [Rating: 7] Favorites ----------- Power Ion Engine Engine Ion Engine Propulsion Light Treads Treads Light Treads Wheel Wheel Utility Small Storage Unit Device Seismic Detector Storage Small Storage Unit Weapon Assault Rifle Energy Gun Medium Laser Ballistic Gun Assault Rifle Build | -11 -10 ------- Run | Yrd Mat Slots Evolved . | . . Power . | . . Propulsion . | . . Utility . | . . Weapon . | . . Parts Attached 8 | 8 . Power 1 | 1 . Engine 1 | 1 . Core . | . . Reactor . | . . Propulsion 3 | 3 . Treads 2 | 2 . Leg . | . . Wheel 1 | 1 . Hover . | . . Flight . | . . Utility 2 | 2 . Device 1 | 1 . Storage 1 | 1 . Processor . | . . Hackware . | . . Protection . | . . Artifact . | . . Weapon 2 | 2 . Energy Gun 1 | 1 . Energy Cannon . | . . Ballistic Gun 1 | 1 . Ballistic Cannon . | . . Launcher . | . . Special Weapon . | . . Impact Weapon . | . . Slashing Weapon . | . . Piercing Weapon . | . . Special Melee Weapon . | . . Unidentified Prototypes . | . . Parts Lost 4 | . 4 Power 1 | . 1 Propulsion 1 | . 1 Utility . | . . Weapon 2 | . 2 Highest Loss Streak 4 | . 4 To Critical Strikes 1 | . 1 Average Backups 2 | . 3 Power . | . . Propulsion . | . . Utility 1 | . 2 Weapon . | . 1 Tool/Special . | . . Unused Backups 5 | . 5 Power . | . . Propulsion . | . . Utility 3 | . 3 Weapon 2 | . 2 Tool/Special . | . . Average Slot Usage (%) 96 | . 96 Engine 13 | . 13 Treads 27 | . 27 Device 13 | . 13 Storage 13 | . 13 Energy Gun 13 | . 13 Ballistic Gun 13 | . 13 Peak Build Rating 7 | 7 7 Average Rating 6 | 5 6 On Entrance 3 | . 7 Avg Prop Armor Cover (%) 15 | 15 . Naked Turns 19 | . 19 Heaviest Build 15 | 15 15 Greatest Support 40 | 40 40 Greatest Overweight (x) 2 | 2 . Average Overweight (x) . | . . Largest Inventory Capacity 8 | 8 8 Average Capacity 7 | 7 7 Most Carried 4 | 2 4 Average Carried 2 | . 3 Final Capacity 8 | 8 5 Final Carried 4 | 1 4 Class Distribution -------------------- 100% | Mutant Dominant Class ---------------- Mutant | -10/Materials Resources | -11 -10 ----------- Run | Yrd Mat Matter Collected 573 | 281 292 Remotely . | . . Salvage Created 372 | 51 321 Parts 24 | 9 15 Haulers Intercepted 1 | . 1 Recyclers Shooed 1 | . 1 Parts Field Recycled . | . . Retrieved Matter . | . . Parts Self-Destructed . | . . Prevented . | . . Parts Restored . | . . Kills | -11 -10 ------- Run | Yrd Mat Combat Hostiles Destroyed 4 | . 4 Guns 4 | . 4 Classes Destroyed 5 | 1 4 Tunneler 3 | 3 . Hauler 1 | . 1 Recycler 1 | . 1 Watcher 2 | . 2 Grunt 4 | . 4 Best Kill Streak 2 | 1 2 Combat Bots Only 1 | . 1 Max Kills in Single Turn 1 | 1 1 Gunslinging . | . . Exploded . | . . Melee . | . . Uniques/NPCs Destroyed . | . . Combat | -11 -10 -------- Run | Yrd Mat Hostile Shots Fired 99 | . 99 Missed 26 | . 26 Hits 73 | . 73 Projectile 73 | . 73 Critical Strikes 1 | . 1 Damage Taken 777 | . 777 Core 253 | . 253 Absorbed by Shields . | . . Core Remaining (%) 100 | 100 . Volleys Fired 47 | 10 37 Largest 2 | 2 2 Hottest 70 | 70 70 Shots Fired 91 | 20 71 Gun 91 | 20 71 Cannon . | . . Launcher . | . . Special . | . . Kinetic 47 | 10 37 Thermal 44 | 10 34 Explosive . | . . Electromagnetic . | . . Robot Hit Streak 8 | 4 8 Robot Miss Streak 7 | 5 7 Penetration Max . | . . Secondary Targets . | . . Shots Hit Robots 46 | 8 38 Core Hits 20 | 3 17 Critical Kills 1 | . 1 Critical Parts Destroyed 1 | . 1 Critical Strikes 5 | 2 3 Burn 3 | 2 1 Destroy 2 | . 2 Melee Attacks . | . . Impact . | . . Slashing . | . . Piercing . | . . Sneak Attacks . | . . Combat Hostiles . | . . Follow-up Attacks . | . . Damage Inflicted 637 | 118 519 Guns 629 | 118 511 Cannons . | . . Explosions . | . . Melee . | . . Ramming 8 | . 8 Kinetic 354 | 67 287 Thermal 275 | 51 224 Explosive . | . . Electromagnetic . | . . Impact . | . . Slashing . | . . Piercing . | . . Highest Corruption . | . . Average Corruption . | . . Corruption Purged . | . . Corruption Blocked . | . . Overload Shots . | . . Overflow Damage . | . . Projectiles . | . . Explosions . | . . Melee . | . . Knockbacks . | . . Impact . | . . Kinetic . | . . Secondary . | . . Self-Inflicted Damage . | . . Shots . | . . Rammed 3 | . 3 Targets Rammed 4 | . 4 Kicked . | . . Crushed 1 | . 1 Highest Temperature 121 | 27 121 Average Temperature 33 | 12 39 Received Heat Transfer 294 | . 294 Siege Activations . | . . Martial Activations . | . . Shielding Activations . | . . Robots Disrupted . | . . Combat Hostiles . | . . Robots Corrupted . | . . Combat Hostiles . | . . Parts Fried . | . . Impact Corruptions . | . . Robots Melted . | . . Combat Hostiles . | . . Parts Melted 1 | 1 . Heat Transferred 1036 | 296 740 Parts Sabotaged . | . . Parts Stolen . | . . Parts Stripped . | . . Power Chain Reactions . | . . Alert | -11 -10 ------- Run | Yrd Mat Maximum Alert Level . | . . Low Security (%) 100 | 100 100 Level 1 . | . . Level 2 . | . . Level 3 . | . . Level 4 . | . . Level 5 . | . . High Security . | . . Max Security . | . . Peak Influence 46 | 5 46 Initial . | . . Average 9 | . 12 Influence Increases 260 | 15 245 Destroy 0b10 Robot/C 80 | . 80 Destroy 0b10 Robot/NC 35 | 15 20 Destroy Leader 36 | . 36 Successful Hack 4 | . 4 Lose Combat Pursuer 105 | . 105 Influence Decreases 260 | 15 245 Time Decay 231 | 15 216 Lost Part 29 | . 29 Squads Dispatched 1 | . 1 Investigation . | . . Extermination . | . . Reinforcement 1 | . 1 Assault . | . . Garrison . | . . Intercept . | . . Searches Triggered . | . . Construction Impeded . | . . Haulers Reinforced . | . . Active Scanning Responses . | . . Cargo Convoy Interrupts . | . . Stealth | -11 -10 --------- Run | Yrd Mat Distress Signals . | . . Communications Jammed . | . . Distress Signals . | . . Times Spotted 19 | . 19 Peak Tracking Total 5 | . 5 Tactical Retreats 7 | . 7 Traps | -11 -10 ------- Run | Yrd Mat Traps Triggered . | . . Indirectly . | . . Trap Hack Attempts . | . . Triggered . | . . Disarmed . | . . Reprogrammed . | . . Reused . | . . Traps Extracted . | . . Installed . | . . Triggered . | . . Machines | -11 -10 ---------- Run | Yrd Mat Machines Disabled . | . . Max in Single Turn . | . . Machines Repaired . | . . Machines Dismantled . | . . Machines Sabotaged . | . . Overloaded Fab Kills . | . . Hacking | -11 -10 --------- Run | Yrd Mat Machines Accessed 1 | . 1 Terminals 1 | . 1 Fabricators . | . . Repair Stations . | . . Recycling Units . | . . Scanalyzers . | . . Garrison Access . | . . Total Hacks 1 | . 1 Successful 1 | . 1 Failed . | . . Catastrophic . | . . Database Lockouts . | . . Manual . | . . Terminals 1 | . 1 Fabricators . | . . Repair Stations . | . . Recycling Units . | . . Scanalyzers . | . . Garrison Access . | . . Terminal Hacks 1 | . 1 Locate Traps 1 | . 1 Fabricator Hacks . | . . Repair Station Hacks . | . . Recycling Unit Hacks . | . . Scanalyzer . | . . Garrison Access Hacks . | . . Unauthorized Hacks . | . . Terminals . | . . Fabricators . | . . Repair Stations . | . . Recycling Units . | . . Scanalyzers . | . . Garrison Access . | . . Data Cores Recovered . | . . Used . | . . Hacking Detections 1 | . 1 Full Trace Events . | . . Feedback Events . | . . Feedback Blocked . | . . Robot Schematics Acquired . | . . Robots Built . | . . Authchips . | . . Time . | . . Total Robot Build Rating . | . . Part Schematics Acquired . | . . Parts Built . | . . Authchips . | . . Time . | . . Total Part Build Rating . | . . Part Studies Acquired . | . . Parts Repaired . | . . Time . | . . Parts Recycled . | . . Recycled Matter . | . . Retrieved Matter . | . . Retrieved Components . | . . Parts Scanalyzed . | . . Part Schematics Acquired . | . . Parts Damaged . | . . Bothacking | -11 -10 ------------ Run | Yrd Mat Used RIF Installer . | . . Robots Hacked . | . . Non-combat . | . . Combat . | . . Robot Hacks Applied . | . . Relay Couplers Released . | . . Fabnet Peak Effective % . | . . Robots Rewired . | . . Allies Hacked . | . . Hacks Repelled . | . . Allies | -11 -10 -------- Run | Yrd Mat Total Allies . | . . Largest Group . | . . Highest-Rated Group . | . . Highest-Rated Ally . | . . Total Orders . | . . Ally Attacks . | . . Total Damage . | . . Kills . | . . Allies Corrupted . | . . Allies Melted . | . . Intel | -11 -10 ------- Run | Yrd Mat Active Infowar (turns) 756 | 61 695 Seismic 756 | 61 695 Robot Analysis Total . | . . Derelict Logs Recovered . | . . Drone Launches . | . . Drone Recoveries . | . . Exploration | -11 -10 ------------- Run | Yrd Mat Turns Passed 931 | 217 714 Spaces Moved 508 | 123 385 Core 30 | 5 25 Treads 451 | 91 360 Legs . | . . Wheels 27 | 27 . Hover . | . . Flight . | . . Fastest Speed 50 | 50 50 Average Speed 150 | 141 152 Slowest Speed 160 | 160 160 Overloaded Moves . | . . Propulsion Burnouts . | . . Robots Hopped . | . . Potential Cave-ins . | . . Cave-ins Triggered . | . . Exploration Rate (%) 26 | 4 49 Regions Visited 1 Branch Regions . Pre-discovered Areas . | . . Known Exits Taken . | . . Unknown Exits Taken 1 | 1 . Scrap Searched . | . . Spaces Dug . | . . Terrain Destroyed . | . . Melee . | . . Projectile . | . . AOE . | . . Terrain Rammed . | . . Walls Destroyed . | . . Machines Disabled . | . . Actions | -11 -10 --------- Run | Yrd Mat Total 581 | 143 438 Wait 7 | . 7 Move 507 | 122 385 Hop . | . . Pick Up 6 | 2 4 Fast Attach 7 | 7 . Attach 1 | 1 . Detach . | . . Swap . | . . Drop 2 | 1 1 Fire 47 | 10 37 Melee . | . . Ram . | . . Kick . | . . Crush 4 | . 4 Escape Stasis . | . . Rewire . | . . Trap . | . . Miscellaneous . | . . Route ------- -11/Scrapyard -10/Materials (discovered 3 exits: [*Mat] / [*Min x2]) History --------- Turn | Location | Event 21 | -11/Scrapyard | Discovered new exit (range 15) 218 | -11/Scrapyard | Entered Materials 314 | -10/Materials | Build established: Mutant 610 | -10/Materials | Discovered new exit (range 16) 829 | -10/Materials | Discovered new exit (range 9) 913 | -10/Materials | Released all parts (3) 914 | -10/Materials | Core integrity fell below 50% 920 | -10/Materials | Discovered new exit (range 8) 929 | -10/Materials | Core integrity fell below 20% 932 | -10/Materials | Destroyed by S-10 Pest with Light Assault Rifle Last Messages --------------- 00659_ Acquired 58 matter. 00662_ Slammed into O-16 Technician. 00676_ K-01 Serf collects debris. 00690_ K-01 Serf cleans the Purification Channel. 00825_ K-01 Serf cleans the Material Processor. 00829_ EXIT=FOUND 00840_ W-16 Scout destroyed. 00849_ Acquired 15 matter. 00852_ R-06 Scavenger collects Hover Unit. 00892_ Med. Laser destroyed. 00895_ G-47 Trooper destroyed. 00900_ Lgt. Treads destroyed. 00903_ Critical hit (Destroy). 00903_ Assault Rifle destroyed. 00912_ Ion Engine destroyed. 00913_ Released Sml. Storage Unit. 00913_ Released Lgt. Treads. 00913_ Released Seismic Detector. 00920_ EXIT=FOUND Map ----- +----------------------------------------------------+ | ||#?????????# ???????????????????? | | ""#+####+###? ???????????????????? | | ||# #? ???????????????????? | | ""# #?? ???????????????????? | | ?# #?? ???????????????????? | | #??# """ ####+#########??????????? | | #??# """"" #* #??????????? | | #??# """""[+% #??????????? | | #??# """"" # !! #??????????? | | #??# """ # = #??????????? | | #??# # #??????????? | | ####+##+##########/#######??????????? | | #??????????? | | #??????????? | | #??????????? | | ##+##########+######## ###??????????? | | # ?????????????????# #????????????? | | #?? ????????????????# #????????????? | | +???" ???????????????# #????????????? | | #????????????????????# #????????????? | | +#????????????????????# #????????????? | | #????????????????##### #????????????? | | #????????????????# s########?????? | | #????????????????# ss #?????? | | ?????????????????# T < #?????? | | ?????????????????# @ #?????? | | ??????????????????# ###+####?????? | | ??????????????????####### #?????? | | ????????????????????????# #?????? | | ????????????????????????# """ #?????? | | ????????????????????????# """ #?????? | | ????????????????????????# """ #?????? | | ????????????????????????# #?????? | | ????????????????????????########?????? | | ?????????????????????????????????????? | | ?????????????????????????????????????? | | ?????????????????????????????????????? | | ?????????????????????????????????????? | | ?????????????????????????????????????? | | | | | | | | | | | | | | | | | | | | | | | +----------------------------------------------------+ Best States ------------- Heat Dissipation 25 Energy Generation 10 Energy Capacity 250 Matter Stores 300 Matter Capacity 300 Sight Range 16 Terrain Scan Density 10 Evasion (%) 50 Recoil Reduction 2 Item Schematics ----------------- None Robot Schematics ------------------ None Fabricated ------------ Nothing Repaired ---------- Nothing Studied --------- None Alien Tech Used ----------------- None Achievements -------------- None Challenges ------------ None Game ------ Seed StrikeWeaponsBroadsword Manual? 0 Play Time 00:07:57 Cumulative 16.2 hours Start 2026.04.25 @ 19:53:31 End 2026.04.25 @ 20:00:11 Sessions 1 Manual Loads 0 Difficulty Rogue Special Mode None Game No. 20 Rogue 4 Adventurer 16 Explorer 0 Win Type - Total 0 Types 0/0/0/0/0/0/0/0/0/0 Lore% 28 Gallery% 24 Achievement% 21 Wizard Run 0 Options --------- Layout 1 ASCII 0 Keyboard 0 Movement Mouse Keybinds 0 Fullscreen 1 Font 24/Smallcaps Map View 50x35 Zoom Use 0% Tactical HUD 1 Map Filters NONE Filters NONE Steam 1 RUN: 0f4e9ae1-4ef1-472e-a79b-8c093240a379